[Event "Early-Titled-Tuesday-Blitz-September-26-2023"]
[Site "Chess.com"]
[Date "2023.09.26"]
[Round "6"]
[White "ploxoi"]
[Black "Aswathchess"]
[Result "1-0"]
[WhiteElo "2432"]
[BlackElo "2577"]
[TimeControl "180+1"]
[EndTime "9:09:09 PDT"]
[Termination "ploxoi won by resignation"]

1. d4 {[%clk 0:03:00.9]} 1... Nf6 {[%clk 0:02:52.9]} 2. c4 {[%clk 0:03:01.1]}
2... e6 {[%clk 0:02:30.5]} 3. g3 {[%clk 0:02:57.8]} 3... d5 {[%clk 0:02:30.1]}
4. Nf3 {[%clk 0:02:58.3]} 4... dxc4 {[%clk 0:02:30]} 5. Bg2 {[%clk 0:02:58.6]}
5... Nbd7 {[%clk 0:02:29.8]} 6. O-O {[%clk 0:02:59]} 6... c6 {[%clk 0:02:28.5]}
7. a4 {[%clk 0:02:53.9]} 7... a5 {[%clk 0:02:27.9]} 8. Na3 {[%clk 0:02:50.3]}
8... Bxa3 {[%clk 0:02:26.6]} 9. Rxa3 {[%clk 0:02:50.7]} 9... O-O {[%clk
0:02:26.9]} 10. Re1 {[%clk 0:02:39]} 10... c5 {[%clk 0:02:15]} 11. dxc5 {[%clk
0:02:28.2]} 11... Nxc5 {[%clk 0:02:13.8]} 12. Qc2 {[%clk 0:02:28.5]} 12... b6
{[%clk 0:02:03.7]} 13. Ne5 {[%clk 0:02:26.4]} 13... Nd5 {[%clk 0:02:02]} 14.
Qxc4 {[%clk 0:02:23.6]} 14... Ba6 {[%clk 0:02:01.2]} 15. Qg4 {[%clk 0:02:20.3]}
15... Bb7 {[%clk 0:01:54.9]} 16. Rd1 {[%clk 0:02:19.1]} 16... Qf6 {[%clk
0:01:48.2]} 17. Nc4 {[%clk 0:02:14.3]} 17... Rad8 {[%clk 0:01:31.7]} 18. Bg5
{[%clk 0:02:09.5]} 18... Qg6 {[%clk 0:01:31.2]} 19. Ne5 {[%clk 0:02:09.7]} 19...
Qc2 {[%clk 0:01:08.8]} 20. Rc1 {[%clk 0:02:08.4]} 20... Qxb2 {[%clk 0:01:08.9]}
21. Nc4 {[%clk 0:02:09]} 21... Qb4 {[%clk 0:00:59.3]} 22. Bd2 {[%clk 0:01:56.8]}
22... Nf6 {[%clk 0:00:22.8]} 23. Bxb4 {[%clk 0:01:36.4]} 23... axb4 {[%clk
0:00:23.2]} 24. Qh4 {[%clk 0:01:18]} 24... Bxg2 {[%clk 0:00:23.4]} 25. Kxg2
{[%clk 0:01:17.2]} 25... bxa3 {[%clk 0:00:23.6]} 26. Nxa3 {[%clk 0:01:17.6]}
26... Ra8 {[%clk 0:00:24]} 27. Rc4 {[%clk 0:00:57.6]} 27... Rfd8 {[%clk
0:00:22.8]} 28. Rb4 {[%clk 0:00:54.9]} 28... Nd5 {[%clk 0:00:21]} 29. Rg4 {[%clk
0:00:46.9]} 29... f5 {[%clk 0:00:15.7]} 30. Rd4 {[%clk 0:00:46.8]} 30... h6
{[%clk 0:00:13.5]} 31. Nb5 {[%clk 0:00:35]} 31... Nf6 {[%clk 0:00:13.4]} 32.
Rxd8+ {[%clk 0:00:25.3]} 32... Rxd8 {[%clk 0:00:14.3]} 33. Qc4 {[%clk
0:00:23.1]} 33... Ra8 {[%clk 0:00:14.8]} 34. Nc3 {[%clk 0:00:22.5]} 34... Kf7
{[%clk 0:00:14.6]} 35. Qb4 {[%clk 0:00:20.3]} 35... Nfd7 {[%clk 0:00:14.9]} 36.
e4 {[%clk 0:00:17.9]} 36... fxe4 {[%clk 0:00:14.6]} 37. Nxe4 {[%clk 0:00:18.8]}
37... Rxa4 {[%clk 0:00:14.9]} 38. Nd6+ {[%clk 0:00:18.4]} 38... Ke7 {[%clk
0:00:15.4]} 39. Qd2 {[%clk 0:00:19.1]} 39... Ra3 {[%clk 0:00:10.9]} 40. Nc8+
{[%clk 0:00:19.3]} 40... Ke8 {[%clk 0:00:10.7]} 41. Qd6 {[%clk 0:00:18.8]} 41...
Kd8 {[%clk 0:00:11]} 42. Nxb6 {[%clk 0:00:18.5]} 42... Rd3 {[%clk 0:00:11.6]}
43. Qc6 {[%clk 0:00:17.9]} 43... Ke7 {[%clk 0:00:09.5]} 44. Nxd7 {[%clk
0:00:17.4]} 44... Nxd7 {[%clk 0:00:10.4]} 45. Qe4 {[%clk 0:00:18]} 45... Rd6
{[%clk 0:00:11.3]} 46. h4 {[%clk 0:00:18.4]} 46... Kf8 {[%clk 0:00:11.7]} 47.
Qb4 {[%clk 0:00:18.9]} 47... Ke7 {[%clk 0:00:12.3]} 48. f4 {[%clk 0:00:19.4]}
48... Nf6 {[%clk 0:00:12.9]} 49. Kf3 {[%clk 0:00:19.5]} 49... Kd7 {[%clk
0:00:13.2]} 50. Qb7+ {[%clk 0:00:20]} 50... Ke8 {[%clk 0:00:13.7]} 51. Qxg7
{[%clk 0:00:20.9]} 51... Rd3+ {[%clk 0:00:14]} 52. Ke2 {[%clk 0:00:21.3]} 1-0

[Event "Early-Titled-Tuesday-Blitz-September-26-2023"]
[Site "Chess.com"]
[Date "2023.09.26"]
[Round "6"]
[White "MMAHDI2013"]
[Black "brm72"]
[Result "1-0"]
[WhiteElo "2325"]
[BlackElo "2525"]
[TimeControl "180+1"]
[EndTime "9:09:12 PDT"]
[Termination "MMAHDI2013 won by resignation"]

1. c4 {[%clk 0:03:00.9]} 1... c5 {[%clk 0:02:59.6]} 2. Nf3 {[%clk 0:02:59.6]}
2... Nc6 {[%clk 0:02:59.3]} 3. b3 {[%clk 0:02:59]} 3... d6 {[%clk 0:02:56.4]} 4.
Bb2 {[%clk 0:02:58.1]} 4... e5 {[%clk 0:02:56.6]} 5. Nc3 {[%clk 0:02:56.3]} 5...
g6 {[%clk 0:02:56.3]} 6. g3 {[%clk 0:02:56.3]} 6... Bg7 {[%clk 0:02:56.5]} 7. d3
{[%clk 0:02:56.9]} 7... Nge7 {[%clk 0:02:55.9]} 8. Bg2 {[%clk 0:02:56.6]} 8...
O-O {[%clk 0:02:56.3]} 9. O-O {[%clk 0:02:55.8]} 9... Rb8 {[%clk 0:02:56.3]} 10.
Ne1 {[%clk 0:02:53.2]} 10... a6 {[%clk 0:02:55.7]} 11. Nc2 {[%clk 0:02:16.1]}
11... b5 {[%clk 0:02:51]} 12. Nd5 {[%clk 0:02:16.1]} 12... Nxd5 {[%clk
0:02:47.4]} 13. cxd5 {[%clk 0:02:15.9]} 13... Nd4 {[%clk 0:02:33]} 14. e3 {[%clk
0:02:05.9]} 14... Nxc2 {[%clk 0:02:30.6]} 15. Qxc2 {[%clk 0:02:06.8]} 15... f5
{[%clk 0:02:28.7]} 16. Rac1 {[%clk 0:02:02.4]} 16... Bd7 {[%clk 0:02:25.4]} 17.
f4 {[%clk 0:01:56.6]} 17... Rc8 {[%clk 0:02:18.3]} 18. fxe5 {[%clk 0:01:44.1]}
18... dxe5 {[%clk 0:02:19.2]} 19. Qe2 {[%clk 0:01:39]} 19... Qe7 {[%clk
0:02:14.4]} 20. e4 {[%clk 0:01:36.1]} 20... Bh6 {[%clk 0:02:04.8]} 21. Rce1
{[%clk 0:01:21.5]} 21... f4 {[%clk 0:02:04.6]} 22. gxf4 {[%clk 0:01:05.9]} 22...
Bxf4 {[%clk 0:02:03.5]} 23. Bc1 {[%clk 0:01:06.4]} 23... g5 {[%clk 0:01:29.4]}
24. Qh5 {[%clk 0:00:44.8]} 24... c4 {[%clk 0:01:20.5]} 25. bxc4 {[%clk
0:00:42.4]} 25... bxc4 {[%clk 0:01:20.3]} 26. Bxf4 {[%clk 0:00:27.9]} 26... gxf4
{[%clk 0:01:16.7]} 27. dxc4 {[%clk 0:00:25]} 27... Rxc4 {[%clk 0:01:15.7]} 28.
Bh3 {[%clk 0:00:24.8]} 28... Be8 {[%clk 0:00:43]} 29. Qf3 {[%clk 0:00:19.5]}
29... Kh8 {[%clk 0:00:42.1]} 30. Kh1 {[%clk 0:00:19.4]} 30... Rc2 {[%clk
0:00:32.5]} 31. Rc1 {[%clk 0:00:17.9]} 31... Rxa2 {[%clk 0:00:26]} 32. Bf5
{[%clk 0:00:17.4]} 32... Qh4 {[%clk 0:00:20.2]} 33. Qh3 {[%clk 0:00:14.6]} 33...
Qxh3 {[%clk 0:00:18.8]} 34. Bxh3 {[%clk 0:00:15.5]} 34... Bb5 {[%clk 0:00:13.4]}
35. Rfe1 {[%clk 0:00:12.5]} 35... f3 {[%clk 0:00:12.8]} 36. Bf1 {[%clk
0:00:13.1]} 36... Bd7 {[%clk 0:00:11.3]} 37. Re3 {[%clk 0:00:12.5]} 37... Bg4
{[%clk 0:00:08.9]} 38. h3 {[%clk 0:00:12.1]} 38... Bh5 {[%clk 0:00:08.1]} 39. d6
{[%clk 0:00:10.1]} 39... Rd2 {[%clk 0:00:06.3]} 40. Rd3 {[%clk 0:00:08.8]} 40...
Rxd3 {[%clk 0:00:04.6]} 41. Bxd3 {[%clk 0:00:09.7]} 41... f2 {[%clk 0:00:05.3]}
42. d7 {[%clk 0:00:08.1]} 42... Bf3+ {[%clk 0:00:02.6]} 43. Kh2 {[%clk 0:00:08]}
43... Kg7 {[%clk 0:00:03.1]} 44. Rc8 {[%clk 0:00:07.6]} 44... Bxe4 {[%clk
0:00:02.2]} 45. Rxf8 {[%clk 0:00:07.1]} 45... Kxf8 {[%clk 0:00:02.4]} 46. d8=Q+
{[%clk 0:00:07]} 46... Kg7 {[%clk 0:00:03.3]} 47. Qe7+ {[%clk 0:00:06.8]} 1-0

[Event "Early-Titled-Tuesday-Blitz-September-26-2023"]
[Site "Chess.com"]
[Date "2023.09.26"]
[Round "6"]
[White "BigAl"]
[Black "Mikasinski"]
[Result "1/2-1/2"]
[WhiteElo "2561"]
[BlackElo "2699"]
[TimeControl "180+1"]
[EndTime "9:09:16 PDT"]
[Termination "Game drawn by repetition"]

1. Nf3 {[%clk 0:02:57.7]} 1... g6 {[%clk 0:02:58.4]} 2. e4 {[%clk 0:02:57.1]}
2... c5 {[%clk 0:02:58.4]} 3. d3 {[%clk 0:02:56]} 3... Bg7 {[%clk 0:02:58.9]} 4.
g3 {[%clk 0:02:56.7]} 4... d6 {[%clk 0:02:59.2]} 5. Bg2 {[%clk 0:02:56.9]} 5...
e6 {[%clk 0:02:59.7]} 6. O-O {[%clk 0:02:50.6]} 6... Ne7 {[%clk 0:02:57.1]} 7.
c3 {[%clk 0:02:50.1]} 7... Nbc6 {[%clk 0:02:57.3]} 8. d4 {[%clk 0:02:38.6]} 8...
cxd4 {[%clk 0:02:55.7]} 9. cxd4 {[%clk 0:02:38.9]} 9... O-O {[%clk 0:02:54.1]}
10. Nc3 {[%clk 0:02:35.9]} 10... d5 {[%clk 0:02:54.1]} 11. e5 {[%clk 0:02:36]}
11... h6 {[%clk 0:02:52.4]} 12. h4 {[%clk 0:02:35.1]} 12... Kh7 {[%clk
0:02:52.9]} 13. h5 {[%clk 0:02:16.2]} 13... Bd7 {[%clk 0:02:48.2]} 14. Bf4
{[%clk 0:01:51.6]} 14... g5 {[%clk 0:02:43.9]} 15. Be3 {[%clk 0:01:42]} 15...
Nf5 {[%clk 0:02:43.6]} 16. Rc1 {[%clk 0:01:36.1]} 16... Rc8 {[%clk 0:02:37.6]}
17. Qd3 {[%clk 0:01:31.4]} 17... Kh8 {[%clk 0:02:36.2]} 18. Bd2 {[%clk
0:01:29.6]} 18... g4 {[%clk 0:02:34.9]} 19. Nh2 {[%clk 0:01:28.9]} 19... Nfxd4
{[%clk 0:02:30.4]} 20. Nxg4 {[%clk 0:01:28.6]} 20... Nxe5 {[%clk 0:02:30.8]} 21.
Nxe5 {[%clk 0:01:27.9]} 21... Bxe5 {[%clk 0:02:28.8]} 22. Bxh6 {[%clk
0:01:28.1]} 22... Rg8 {[%clk 0:02:26.4]} 23. Rfe1 {[%clk 0:01:15.9]} 23... Bf6
{[%clk 0:02:25.2]} 24. Bf4 {[%clk 0:01:10.9]} 24... Nc6 {[%clk 0:02:16.7]} 25.
Nb5 {[%clk 0:00:59.2]} 25... Nb4 {[%clk 0:02:12.4]} 26. Qe2 {[%clk 0:00:53.9]}
26... Rxc1 {[%clk 0:02:06.8]} 27. Rxc1 {[%clk 0:00:53.5]} 27... Nxa2 {[%clk
0:01:43.6]} 28. Ra1 {[%clk 0:00:41.2]} 28... Nb4 {[%clk 0:01:28.3]} 29. Rxa7
{[%clk 0:00:40.3]} 29... Qb6 {[%clk 0:01:28.5]} 30. Be5 {[%clk 0:00:29.9]} 30...
Bxe5 {[%clk 0:01:20.5]} 31. Qxe5+ {[%clk 0:00:29.5]} 31... Kh7 {[%clk
0:01:21.1]} 32. Ra4 {[%clk 0:00:19.4]} 32... Nd3 {[%clk 0:00:36.4]} 33. Be4+
{[%clk 0:00:18]} 33... dxe4 {[%clk 0:00:34.8]} 34. Qxe4+ {[%clk 0:00:18.5]}
34... f5 {[%clk 0:00:34]} 35. Qxd3 {[%clk 0:00:12.9]} 35... Bxb5 {[%clk
0:00:34.1]} 36. Rb4 {[%clk 0:00:12.5]} 36... Bxd3 {[%clk 0:00:33.8]} 37. Rxb6
{[%clk 0:00:13.4]} 37... Be4 {[%clk 0:00:33.8]} 38. Rxe6 {[%clk 0:00:12.6]}
38... Rc8 {[%clk 0:00:32.9]} 39. Kh2 {[%clk 0:00:10.9]} 39... Rc2 {[%clk
0:00:31.4]} 40. g4 {[%clk 0:00:10.1]} 40... Rxf2+ {[%clk 0:00:30.4]} 41. Kg3
{[%clk 0:00:11]} 41... Rf3+ {[%clk 0:00:30.1]} 42. Kh4 {[%clk 0:00:11.9]} 42...
Rf4 {[%clk 0:00:29.7]} 43. Kg5 {[%clk 0:00:11.1]} 43... Rxg4+ {[%clk 0:00:29.7]}
44. Kf6 {[%clk 0:00:12]} 44... Kh6 {[%clk 0:00:29.4]} 45. Re8 {[%clk 0:00:12.2]}
45... f4 {[%clk 0:00:24.2]} 46. Rxe4 {[%clk 0:00:10.9]} 46... Kxh5 {[%clk
0:00:22.1]} 47. Kf5 {[%clk 0:00:07.9]} 47... Rg2 {[%clk 0:00:20]} 48. b4 {[%clk
0:00:07.7]} 48... f3 {[%clk 0:00:19.9]} 49. Re8 {[%clk 0:00:08]} 49... Kh4
{[%clk 0:00:19]} 50. Kf4 {[%clk 0:00:08.5]} 50... Rg4+ {[%clk 0:00:13.6]} 51.
Kxf3 {[%clk 0:00:08.6]} 51... Rxb4 {[%clk 0:00:14.4]} 52. Rg8 {[%clk 0:00:09]}
52... Rb1 {[%clk 0:00:11.2]} 53. Ke3 {[%clk 0:00:09.3]} 53... Kh5 {[%clk
0:00:10.5]} 54. Kd4 {[%clk 0:00:08.7]} 54... Kh6 {[%clk 0:00:11.1]} 55. Kc5
{[%clk 0:00:09]} 55... Kh7 {[%clk 0:00:11.1]} 56. Rg2 {[%clk 0:00:07.5]} 56...
Rc1+ {[%clk 0:00:07.7]} 57. Kb6 {[%clk 0:00:07.4]} 57... Rb1+ {[%clk 0:00:08.4]}
58. Kc5 {[%clk 0:00:07.9]} 58... Rc1+ {[%clk 0:00:08.3]} 59. Kb6 {[%clk
0:00:08.3]} 59... Rb1+ {[%clk 0:00:08.2]} 60. Kc5 {[%clk 0:00:08]} 1/2-1/2

[Event "Early-Titled-Tuesday-Blitz-September-26-2023"]
[Site "Chess.com"]
[Date "2023.09.26"]
[Round "6"]
[White "deribas12345"]
[Black "skkeyan1309"]
[Result "1-0"]
[WhiteElo "2584"]
[BlackElo "2715"]
[TimeControl "180+1"]
[EndTime "9:09:17 PDT"]
[Termination "deribas12345 won by checkmate"]

1. d4 {[%clk 0:03:00.9]} 1... d5 {[%clk 0:03:00.1]} 2. c4 {[%clk 0:03:00.7]}
2... c6 {[%clk 0:03:00.6]} 3. Nf3 {[%clk 0:03:00]} 3... Nf6 {[%clk 0:03:00.9]}
4. Nc3 {[%clk 0:03:00.3]} 4... e6 {[%clk 0:03:01]} 5. g3 {[%clk 0:02:58.4]} 5...
dxc4 {[%clk 0:02:57.6]} 6. Bg2 {[%clk 0:02:58.4]} 6... b5 {[%clk 0:02:56.7]} 7.
Ne5 {[%clk 0:02:56.2]} 7... Nd5 {[%clk 0:02:56.3]} 8. e4 {[%clk 0:02:52.7]} 8...
Nxc3 {[%clk 0:02:52.6]} 9. bxc3 {[%clk 0:02:53.6]} 9... Bb7 {[%clk 0:02:50.7]}
10. Qf3 {[%clk 0:02:44.6]} 10... f6 {[%clk 0:02:48.8]} 11. Qh5+ {[%clk
0:02:42.6]} 11... g6 {[%clk 0:02:37.8]} 12. Nxg6 {[%clk 0:02:41.6]} 12... hxg6
{[%clk 0:02:36.6]} 13. Qxh8 {[%clk 0:02:40.5]} 13... Kf7 {[%clk 0:02:34.7]} 14.
Bh6 {[%clk 0:02:34.8]} 14... Nd7 {[%clk 0:02:15.5]} 15. Qh7+ {[%clk 0:02:31.1]}
15... Ke8 {[%clk 0:02:16]} 16. Qxg6+ {[%clk 0:02:30.9]} 16... Ke7 {[%clk
0:02:16.2]} 17. O-O {[%clk 0:02:22.8]} 17... Bxh6 {[%clk 0:02:08.1]} 18. Qxh6
{[%clk 0:02:20.6]} 18... Qg8 {[%clk 0:02:08.5]} 19. f4 {[%clk 0:02:17.1]} 19...
Qf7 {[%clk 0:02:02]} 20. e5 {[%clk 0:02:12.4]} 20... f5 {[%clk 0:02:01.4]} 21.
Qg5+ {[%clk 0:02:05.2]} 21... Ke8 {[%clk 0:02:01.3]} 22. a4 {[%clk 0:02:02.9]}
22... Nf8 {[%clk 0:01:54.3]} 23. Rfb1 {[%clk 0:01:41.5]} 23... a6 {[%clk
0:01:49.4]} 24. h4 {[%clk 0:01:38.6]} 24... Rd8 {[%clk 0:01:29.9]} 25. Qf6
{[%clk 0:01:21.4]} 25... Qxf6 {[%clk 0:01:23]} 26. exf6 {[%clk 0:01:21.1]} 26...
Kf7 {[%clk 0:01:11.1]} 27. axb5 {[%clk 0:01:18.8]} 27... axb5 {[%clk 0:01:11.7]}
28. Ra7 {[%clk 0:01:17.7]} 28... Rd7 {[%clk 0:01:12.1]} 29. h5 {[%clk
0:00:37.1]} 29... Kxf6 {[%clk 0:01:12]} 30. Re1 {[%clk 0:00:36.2]} 30... Rh7
{[%clk 0:00:56.3]} 31. Bf3 {[%clk 0:00:35.4]} 31... Rg7 {[%clk 0:00:47.2]} 32.
Kf2 {[%clk 0:00:35]} 32... Rh7 {[%clk 0:00:43]} 33. g4 {[%clk 0:00:32.3]} 33...
fxg4 {[%clk 0:00:42.7]} 34. Bxg4 {[%clk 0:00:33.2]} 34... Bc8 {[%clk 0:00:40.6]}
35. Rxh7 {[%clk 0:00:32]} 35... Nxh7 {[%clk 0:00:41.5]} 36. Ra1 {[%clk
0:00:28.6]} 36... Bd7 {[%clk 0:00:35.9]} 37. Ra8 {[%clk 0:00:25.4]} 37... Kg7
{[%clk 0:00:33.6]} 38. Ra7 {[%clk 0:00:23.5]} 38... Nf6 {[%clk 0:00:33.5]} 39.
Bxe6 {[%clk 0:00:23.3]} 39... Ne4+ {[%clk 0:00:32.6]} 40. Ke3 {[%clk 0:00:22.6]}
40... Nxc3 {[%clk 0:00:33.5]} 41. Bxd7 {[%clk 0:00:20.7]} 41... b4 {[%clk
0:00:31.2]} 42. Bxc6+ {[%clk 0:00:19.2]} 42... Kh6 {[%clk 0:00:31.7]} 43. Be4
{[%clk 0:00:19.3]} 43... Kxh5 {[%clk 0:00:29.5]} 44. d5 {[%clk 0:00:19.3]} 44...
b3 {[%clk 0:00:29.5]} 45. d6 {[%clk 0:00:19]} 45... Nxe4 {[%clk 0:00:23.1]} 46.
Kxe4 {[%clk 0:00:18.2]} 46... c3 {[%clk 0:00:24]} 47. Kd3 {[%clk 0:00:16.9]}
47... c2 {[%clk 0:00:23.6]} 48. Kd2 {[%clk 0:00:16.4]} 48... Kg6 {[%clk
0:00:20.3]} 49. Rb7 {[%clk 0:00:16]} 49... Kf5 {[%clk 0:00:19]} 50. Rxb3 {[%clk
0:00:15.9]} 50... c1=Q+ {[%clk 0:00:19.1]} 51. Kxc1 {[%clk 0:00:16]} 51... Ke6
{[%clk 0:00:19.6]} 52. Rd3 {[%clk 0:00:16.1]} 52... Kd7 {[%clk 0:00:19.7]} 53.
f5 {[%clk 0:00:16.6]} 53... Ke8 {[%clk 0:00:19.7]} 54. Kd2 {[%clk 0:00:17.2]}
54... Kd8 {[%clk 0:00:20.1]} 55. Ke3 {[%clk 0:00:17.9]} 55... Ke8 {[%clk
0:00:20.7]} 56. Ke4 {[%clk 0:00:18.8]} 56... Kd8 {[%clk 0:00:21]} 57. Ke5 {[%clk
0:00:19.5]} 57... Kd7 {[%clk 0:00:21.9]} 58. f6 {[%clk 0:00:19.7]} 58... Ke8
{[%clk 0:00:21.6]} 59. Ke6 {[%clk 0:00:20.1]} 59... Kd8 {[%clk 0:00:22.2]} 60.
Rc3 {[%clk 0:00:20.4]} 60... Ke8 {[%clk 0:00:21.2]} 61. Rc8# {[%clk 0:00:21.3]}
1-0

[Event "Early-Titled-Tuesday-Blitz-September-26-2023"]
[Site "Chess.com"]
[Date "2023.09.26"]
[Round "6"]
[White "koncheto"]
[Black "SargissyanSargis"]
[Result "0-1"]
[WhiteElo "2546"]
[BlackElo "2430"]
[TimeControl "180+1"]
[EndTime "9:09:17 PDT"]
[Termination "SargissyanSargis won by resignation"]

1. e4 {[%clk 0:02:56.7]} 1... e5 {[%clk 0:02:58.4]} 2. Nf3 {[%clk 0:02:56.5]}
2... Nc6 {[%clk 0:02:58.9]} 3. Bc4 {[%clk 0:02:54.8]} 3... Bc5 {[%clk
0:02:58.3]} 4. c3 {[%clk 0:02:55.1]} 4... Nf6 {[%clk 0:02:58.2]} 5. d3 {[%clk
0:02:55.3]} 5... O-O {[%clk 0:02:57.5]} 6. O-O {[%clk 0:02:55.5]} 6... d5 {[%clk
0:02:56.5]} 7. exd5 {[%clk 0:02:56.1]} 7... Nxd5 {[%clk 0:02:57.3]} 8. h3 {[%clk
0:02:56.8]} 8... Nb6 {[%clk 0:02:54.7]} 9. Bb5 {[%clk 0:02:55.5]} 9... Bd6
{[%clk 0:02:49]} 10. Re1 {[%clk 0:02:55.1]} 10... Bf5 {[%clk 0:02:45]} 11. Nbd2
{[%clk 0:02:50.9]} 11... a6 {[%clk 0:02:40.4]} 12. Bxc6 {[%clk 0:02:49.5]} 12...
bxc6 {[%clk 0:02:40.7]} 13. d4 {[%clk 0:02:50.4]} 13... exd4 {[%clk 0:02:38.2]}
14. Nxd4 {[%clk 0:02:51.3]} 14... Bd7 {[%clk 0:02:35.2]} 15. Ne4 {[%clk
0:02:43]} 15... c5 {[%clk 0:02:28.3]} 16. Nb3 {[%clk 0:02:26.4]} 16... c4 {[%clk
0:02:22.5]} 17. Nxd6 {[%clk 0:02:25]} 17... cxd6 {[%clk 0:02:22.1]} 18. Nd4
{[%clk 0:02:17.2]} 18... Qf6 {[%clk 0:02:12.5]} 19. Qh5 {[%clk 0:02:08.4]} 19...
Rfe8 {[%clk 0:02:04.8]} 20. Bg5 {[%clk 0:02:00]} 20... Qg6 {[%clk 0:01:58.3]}
21. Qxg6 {[%clk 0:01:57.2]} 21... hxg6 {[%clk 0:01:58.2]} 22. Bf4 {[%clk
0:01:58.1]} 22... d5 {[%clk 0:01:54.6]} 23. Kf1 {[%clk 0:01:39.8]} 23... f6
{[%clk 0:01:47.8]} 24. Bd6 {[%clk 0:01:23.2]} 24... Kf7 {[%clk 0:01:44.5]} 25.
Rxe8 {[%clk 0:01:19.7]} 25... Rxe8 {[%clk 0:01:42.5]} 26. Re1 {[%clk 0:01:20.6]}
26... Rxe1+ {[%clk 0:01:08.9]} 27. Kxe1 {[%clk 0:01:21.5]} 27... Na4 {[%clk
0:01:09]} 28. Ba3 {[%clk 0:01:18.5]} 28... Bf5 {[%clk 0:01:09.4]} 29. Nc6 {[%clk
0:00:57.5]} 29... Bb1 {[%clk 0:01:06.6]} 30. Nb4 {[%clk 0:00:57.2]} 30... Ke6
{[%clk 0:01:04.6]} 31. Nxa6 {[%clk 0:00:57.5]} 31... Bxa2 {[%clk 0:01:04]} 32.
Nc7+ {[%clk 0:00:52]} 32... Ke5 {[%clk 0:01:00]} 33. Ne8 {[%clk 0:00:50.2]}
33... d4 {[%clk 0:00:53.4]} 34. cxd4+ {[%clk 0:00:43.9]} 34... Kxd4 {[%clk
0:00:53.9]} 35. Nxg7 {[%clk 0:00:44.3]} 35... c3 {[%clk 0:00:51.8]} 36. bxc3+
{[%clk 0:00:40.5]} 36... Kxc3 {[%clk 0:00:42.3]} 37. Ke2 {[%clk 0:00:25.1]}
37... Kd4 {[%clk 0:00:41.3]} 38. Ne8 {[%clk 0:00:24.4]} 38... Ke5 {[%clk
0:00:41]} 39. h4 {[%clk 0:00:20.3]} 39... Bc4+ {[%clk 0:00:39.8]} 40. Ke3 {[%clk
0:00:19.1]} 40... Bd5 {[%clk 0:00:39.6]} 41. g4 {[%clk 0:00:17.2]} 41... f5
{[%clk 0:00:35.3]} 42. h5 {[%clk 0:00:15.7]} 42... gxh5 {[%clk 0:00:26.7]} 43.
gxh5 {[%clk 0:00:16.1]} 43... f4+ {[%clk 0:00:24.9]} 44. Kd3 {[%clk 0:00:10.4]}
44... Be4+ {[%clk 0:00:24]} 45. Kc4 {[%clk 0:00:09.7]} 45... Nb6+ {[%clk
0:00:23.7]} 46. Kb5 {[%clk 0:00:07.8]} 46... Nd7 {[%clk 0:00:23.9]} 47. h6
{[%clk 0:00:05.3]} 47... Ke6 {[%clk 0:00:19.3]} 48. Bb2 {[%clk 0:00:04.7]} 48...
Bg6 {[%clk 0:00:17.9]} 49. Kc6 {[%clk 0:00:04.4]} 49... Bxe8 {[%clk 0:00:16.7]}
50. Kc7 {[%clk 0:00:04.5]} 50... Bg6 {[%clk 0:00:16.2]} 51. Kd8 {[%clk
0:00:04.6]} 51... Nf6 {[%clk 0:00:15.7]} 52. Kc7 {[%clk 0:00:03.2]} 52... Kf7
{[%clk 0:00:15.1]} 53. Kd6 {[%clk 0:00:03.2]} 53... Ng4 {[%clk 0:00:15.2]} 54.
Bg7 {[%clk 0:00:03]} 54... Nxf2 {[%clk 0:00:14.9]} 55. Ke5 {[%clk 0:00:03.5]}
55... Nd3+ {[%clk 0:00:13.4]} 56. Kd4 {[%clk 0:00:03.8]} 56... f3 {[%clk
0:00:13.2]} 57. Ke3 {[%clk 0:00:04.7]} 57... f2 {[%clk 0:00:13.5]} 58. Bd4
{[%clk 0:00:02.9]} 58... f1=Q {[%clk 0:00:12.9]} 0-1